bitfinex-derivatives/quotes_ETHF0:USTF0_20240930
["timestamp","ask_amount","ask_price","bid_price","bid_amount"]
[1727721220483,3.59477,2584.6,2584.2,16.59756]
[1727721220886,3.2078,2584.3,2584.2,16.98458]
[1727721223187,3.2078,2584.6,2584.3,0.38701]
[1727721223393,3.2078,2584.6,2584.5,0.38698]
[1727721224686,1.3204,2585.1,2584.7,0.38694]
[1727721224687,3.2078,2584.9,2584.7,0.38694]
[1727721224894,3.2078,2584.9,2584.6,0.38695]
[1727721225490,3.2078,2584.9,2584.2,16.59756]
[1727721225793,3.2078,2584.9,2584.6,0.38695]
[1727721225991,3.2078,2584.9,2584.2,17.5651]
[1727721226191,3.2078,2584.9,2584.6,0.38696]
[1727721227385,3.2078,2584.9,2584.2,17.5651]
[1727721227585,3.2078,2584.5,2584.3,0.387]
[1727721227791,3.2078,2584.5,2584.2,16.59756]
[1727721228401,3.2078,2584.5,2584.3,0.387]
[1727721228699,3.2078,2584.5,2584.2,16.59756]
[1727721228903,3.2078,2584.5,2584.2,16.98457]
[1727721229098,3.2078,2584.5,2584.4,0.38699]
[1727721230295,3.2078,2584.5,2584.4,4.25659]
[1727721230997,3.2078,2584.5,2584.4,0.38699]
[1727721231196,3.2078,2584.5,2584.4,4.25659]
[1727721231400,3.2078,2584.5,2584.4,0.38699]
[1727721231604,3.2078,2584.5,2584.4,4.25659]
[1727721232192,3.2078,2584.5,2584.4,0.38699]
[1727721232798,3.2078,2584.5,2584.3,0.387]
[1727721233201,3.2078,2584.5,2584.4,0.38699]
[1727721233706,3.2078,2584.5,2584.4,4.25659]
[1727721235001,3.2078,2584.5,2584.4,0.38699]
[1727721235400,3.2078,2584.5,2584.4,4.25659]
[1727721236002,3.2078,2584.5,2584.4,4.89979]
[1727721236507,3.2078,2584.5,2584.4,1.03019]
[1727721236698,3.2078,2584.5,2584.2,16.59756]
[1727721236904,0.718,2584.4,2584.2,16.59756]
[1727721237211,2.72,2584.3,2584.2,16.59756]
[1727721237403,6.97661,2584.3,2584.2,16.59756]
[1727721237604,1.3602,2584.4,2584.2,16.59756]
[1727721237809,0.38701,2584.3,2584.2,16.59756]
[1727721238208,4.25661,2584.3,2584.2,16.59756]
[1727721238604,12.97661,2584.3,2584.2,16.59756]
[1727721239008,13.96374282,2584.3,2584.2,16.59756]
[1727721239209,13.97147152,2584.3,2584.2,16.59756]
[1727721239404,12.97661,2584.3,2584.2,16.59756]
[1727721239706,14.46085767,2584.3,2584.2,16.59756]
[1727721240101,13.17029086,2584.3,2584.2,16.59756]
[1727721240510,12.78328086,2584.3,2584.2,16.59756]
[1727721240707,0.99473175,2584.3,2584.2,23.57418]
[1727721240908,5.19711006,2584.5,2584.4,0.38699]
[1727721240909,3.2078,2584.5,2584.4,0.38699]
[1727721241098,3.2078,2584.9,2584.4,12.5896]
[1727721241301,3.2078,2584.9,2584.8,0.38693]
[1727721241503,3.59472,2584.9,2584.6,0.38695]
[1727721241715,3.2078,2584.9,2584.7,0.38693]
[1727721241910,3.2078,2584.9,2584.7,0.38694]
[1727721242111,3.2078,2584.9,2584.4,0.96748]
[1727721242304,3.2078,2584.9,2584.8,0.38693]
[1727721243110,3.2078,2584.9,2584.7,0.38694]
[1727721244813,3.2078,2584.9,2584.3,3.9427]
[1727721245311,3.2078,2584.9,2584.6,0.38695]
[1727721245513,3.2078,2584.7,2584.4,0.38698]
[1727721245702,3.2078,2584.7,2584.3,0.7349]
[1727721245902,1.38163175,2585.0,2584.2,16.59756]
[1727721245903,3.2078,2584.4,2584.2,16.59756]
[1727721246307,3.2078,2584.4,2584.2,16.98457]
[1727721246611,3.2078,2584.4,2584.2,16.59756]
[1727721247511,3.8696,2584.3,2584.2,16.59756]
[1727721247709,5.99074175,2584.3,2584.2,16.59756]
[1727721247911,6.48798941,2584.3,2584.2,16.59756]
[1727721248113,12.48798941,2584.3,2584.2,16.59756]
[1727721248307,10.99601,2584.3,2584.2,16.59756]
[1727721248507,12.48798941,2584.3,2584.2,16.59756]
[1727721248712,10.99601,2584.3,2584.2,16.59756]
[1727721248912,11.99076324,2584.3,2584.2,16.59756]
[1727721249111,4.99601,2584.3,2584.2,16.59756]
[1727721249307,5.99058128,2584.3,2584.2,16.59756]
[1727721249906,11.99058128,2584.3,2584.2,16.59756]
[1727721250216,15.83798941,2584.3,2584.2,16.59756]
[1727721250417,16.52899863,2584.3,2584.2,16.59756]
[1727721250714,14.53968857,2584.3,2584.2,16.59756]
[1727721251104,18.65076054,2584.3,2584.2,16.59756]
[1727721251304,56.96814526,2584.3,2584.2,1.28480158]
[1727721251511,0.96772,2583.8,2582.9,0.6904]
[1727721251707,3.2078,2583.1,2583.0,0.3872]
[1727721252011,2.083,2583.1,2583.0,0.3872]
[1727721252212,3.2078,2583.5,2583.1,0.96794]
[1727721252508,3.2078,2583.5,2583.4,0.38714]
[1727721255006,0.7201,2583.9,2583.7,0.38709]
[1727721255007,3.2078,2583.8,2583.7,0.38709]
[1727721257622,3.2078,2583.8,2583.5,1.4534]
[1727721257820,3.2078,2583.8,2583.7,0.38709]
[1727721259014,3.2078,2584.1,2584.0,0.38704]
[1727721261512,0.99383567,2584.5,2584.0,9.8696]
[1727721261706,3.2078,2584.7,2584.6,0.38696]
[1727721261905,1.98767134,2585.0,2584.4,3.35]
[1727721261906,5.69238917,2585.0,2584.4,3.35]
[1727721262107,3.2078,2585.0,2584.9,0.38692]
[1727721263415,3.2078,2585.0,2584.5,0.96745]
[1727721263719,3.2078,2585.0,2584.8,0.38692]
[1727721263921,3.2078,2585.0,2584.9,0.38692]
[1727721266714,3.2078,2585.0,2584.7,0.7405]
[1727721266914,3.2078,2585.0,2584.9,0.38692]
[1727721267421,3.2078,2585.0,2584.7,0.7405]
[1727721267615,3.2078,2585.0,2584.9,0.38692]
[1727721269625,3.2078,2585.4,2584.7,0.7405]
[1727721269824,3.2078,2585.4,2585.3,0.38686]
[1727721270318,3.2078,2585.4,2584.9,0.96728]
[1727721270518,3.2078,2585.4,2585.3,0.38686]
[1727721271216,0.6792,2585.6,2585.3,0.38686]
[1727721271420,3.2078,2585.9,2585.0,4.0459]
[1727721271614,3.2078,2585.9,2585.8,0.38678]
[1727721272923,3.2078,2585.9,2585.7,0.38679]
[1727721273126,3.2078,2585.9,2585.3,0.7056]
[1727721273319,0.38687,2585.5,2585.1,0.38692]
[1727721273516,3.2078,2585.3,2585.0,0.6959]
[1727721273725,3.2078,2585.3,2585.1,0.38692]
[1727721274124,3.2078,2585.3,2584.8,0.7134]
[1727721274332,3.2078,2585.3,2585.1,0.38691]
[1727721274528,3.2078,2585.3,2585.2,0.38691]
[1727721275427,3.2078,2585.3,2585.1,0.38692]
[1727721275626,3.2078,2585.3,2584.8,1.6808]
[1727721275627,3.2078,2585.3,2585.2,0.38691]
[1727721283034,3.2078,2585.3,2584.8,0.7134]
[1727721283245,3.2078,2585.3,2584.0,3.2078]
[1727721283246,3.2078,2585.0,2584.0,3.2078]
[1727721283537,4.17528,2584.7,2583.9,1.67094]
[1727721283831,3.2078,2584.4,2584.3,0.38704]
[1727721286338,0.7433,2584.6,2584.5,0.38701]
[1727721286934,3.2078,2584.7,2584.0,3.35]
[1727721287240,3.2078,2584.7,2584.2,0.96764]
[1727721287737,3.2078,2584.7,2584.6,0.387]
[1727721288133,3.2078,2584.7,2584.2,0.96764]
[1727721288328,3.2078,2584.7,2584.6,0.387]
[1727721288945,7.0766,2584.7,2584.0,0.96772]
[1727721289129,4.17527,2584.7,2584.0,0.96772]
[1727721289329,0.38702,2584.5,2584.3,0.38704]
[1727721289747,0.38702,2584.5,2583.9,3.911]
[1727721289748,0.9675,2584.6,2583.9,3.911]
[1727721289933,4.17527,2584.7,2583.9,3.911]
[1727721289934,3.2078,2584.1,2583.9,0.38709]
[1727721290337,3.2078,2584.1,2583.5,0.7438]
[1727721290338,3.9572,2584.1,2583.5,0.7438]
[1727721290541,4.6948,2584.1,2583.5,0.7438]
[1727721290748,3.2078,2583.8,2583.0,3.2078]
[1727721291042,3.2078,2583.8,2583.5,0.38715]
[1727721291243,3.59492,2583.8,2583.4,0.38716]
[1727721291449,3.59492,2583.8,2583.0,3.9516]
[1727721291646,3.59492,2583.8,2583.0,0.7438]
[1727721291835,2.45472,2584.1,2583.0,0.7438]
[1727721291836,3.2078,2583.5,2583.0,0.7438]
[1727721292538,3.2078,2583.5,2583.2,0.3872]
[1727721292741,3.2078,2583.5,2583.0,0.7438]
[1727721292938,0.7035,2583.4,2583.0,0.7438]
[1727721293131,0.7035,2583.4,2583.1,0.38721]
[1727721293331,0.7035,2583.4,2582.9,0.38725]
[1727721293332,3.2078,2583.2,2582.9,0.38725]
[1727721293538,3.2078,2583.2,2582.4,3.1463]
[1727721293933,3.2078,2583.2,2583.0,0.38723]
[1727721294545,3.2078,2583.2,2583.1,0.38722]
[1727721300459,3.2078,2583.8,2583.1,9.8712]
[1727721300748,3.2078,2583.8,2583.7,0.38713]
[1727721301349,3.59493,2583.8,2583.3,0.6947]
[1727721301546,3.2078,2583.5,2583.2,0.3872]
[1727721301845,3.2078,2583.5,2582.6,4.17603]
[1727721301846,0.6982,2583.4,2582.6,0.6947]
[1727721302050,3.2078,2582.7,2582.6,0.3873]
[1727721302259,3.2078,2582.7,2582.2,1.65727]
[1727721302260,3.2078,2582.7,2582.2,4.86507]
[1727721302455,3.2078,2582.4,2582.1,1.3746]
[1727721302656,3.2078,2582.4,2581.6,6.3583]
[1727721302957,3.2078,2582.1,2582.0,0.38737]
[1727721303755,3.906,2582.5,2582.4,0.38733]
[1727721303951,3.906,2582.5,2582.3,0.38734]
[1727721304254,3.906,2582.5,2582.4,0.38733]
[1727721304949,3.906,2582.5,2582.1,0.38737]
[1727721305150,3.2078,2582.2,2581.8,0.96855]
[1727721305456,3.2078,2582.2,2581.5,0.6947]
[1727721305754,3.2078,2581.9,2581.6,0.38744]
[1727721305953,3.2078,2581.9,2580.9,9.683]
[1727721305954,0.7386,2581.8,2580.9,10.3972]
[1727721306153,3.2078,2581.5,2581.4,0.38748]
[1727721308147,3.2078,2581.5,2580.9,0.7142]
[1727721308347,3.2078,2581.5,2581.3,0.38749]
[1727721308548,3.2078,2581.4,2581.3,0.38749]
[1727721308956,4.6579,2581.8,2581.3,4.26109]
[1727721309163,3.9464,2581.8,2581.7,0.38743]
[1727721309350,0.38735,2582.3,2581.9,0.38739]
[1727721309351,3.2078,2582.1,2581.9,0.38739]
[1727721309658,3.2078,2582.1,2582.0,0.38739]
[1727721310266,3.2078,2582.1,2581.9,0.38739]
[1727721310550,3.2078,2582.1,2581.4,4.0716]
[1727721310551,3.2078,2582.1,2581.4,2.2236]
[1727721310750,0.6921,2582.0,2581.4,2.2236]
[1727721310957,0.6921,2582.0,2581.8,0.38741]
[1727721311350,0.6921,2582.0,2581.9,0.3874]
[1727721311860,3.2078,2582.1,2582.0,0.38739]
[1727721312448,0.7058,2582.4,2581.7,4.31858]
[1727721312649,3.2078,2582.5,2582.4,0.38733]
[1727721313457,3.2078,2582.5,2582.0,0.7192]
[1727721313663,3.2078,2582.5,2582.2,0.38736]
[1727721313956,3.2078,2582.5,2581.6,0.96863]
[1727721314165,0.6921,2582.8,2581.9,0.3874]
[1727721314166,3.2078,2582.2,2581.9,0.3874]
[1727721314458,0.6802,2582.1,2581.9,0.38739]
[1727721315049,0.6802,2582.1,2581.5,3.927]
[1727721315248,3.2078,2581.9,2581.5,0.7192]
[1727721315454,3.2078,2581.9,2581.8,0.38742]
[1727721315751,3.2078,2581.9,2581.6,0.38745]
[1727721316055,3.2078,2581.9,2581.3,0.7364]
[1727721316357,3.2078,2581.9,2581.8,0.38742]
[1727721316652,0.6802,2582.1,2582.0,0.38739]
[1727721318747,0.6802,2582.1,2581.3,3.9442]
[1727721318954,0.6802,2582.1,2581.9,0.38739]
[1727721319262,3.2078,2582.0,2581.9,0.38739]
[1727721320557,0.69,2582.4,2581.9,0.38739]
[1727721320558,3.2078,2582.3,2582.2,0.38736]
[1727721320750,3.2078,2582.3,2582.1,0.38736]
[1727721320957,3.9013,2582.3,2581.6,0.6779]
[1727721321254,3.9013,2582.3,2581.7,0.38742]
[1727721321255,3.59519,2582.0,2581.7,0.38742]
[1727721321451,3.59519,2582.0,2581.1,0.96878]
[1727721321452,0.6891,2581.9,2581.0,4.17664]
[1727721321657,3.2078,2581.6,2580.7,1.4591]
[1727721321858,3.2078,2581.6,2581.5,0.38746]
[1727721322256,0.6891,2581.9,2581.8,0.38742]
[1727721324350,0.6891,2581.9,2581.4,1.71508]
[1727721324554,3.8969,2581.9,2581.8,0.38742]
[1727721324755,3.8969,2581.9,2581.1,2.46982]
[1727721324959,3.2078,2581.5,2581.4,0.38747]
[1727721325157,3.59527,2581.5,2581.2,0.38751]
[1727721325359,1.06568,2581.4,2581.1,0.38751]
[1727721325575,3.2078,2581.2,2581.1,0.38751]
[1727721325762,3.2078,2581.5,2581.4,0.38748]
[1727721326659,7.46887,2581.5,2580.9,0.96887]
[1727721326969,3.2078,2581.2,2581.1,0.38752]
[1727721328060,4.7511,2581.8,2581.4,0.38748]
[1727721328061,3.2078,2581.5,2581.4,0.38748]
[1727721328657,0.6782,2581.8,2581.7,0.38743]
[1727721328959,3.886,2581.8,2581.2,0.96875]
[1727721329164,3.2078,2581.5,2581.4,0.38747]
[1727721329361,3.2078,2581.5,2580.8,2.2102]
[1727721329565,3.2078,2581.2,2580.8,1.67713]
[1727721329760,3.2078,2581.2,2580.6,0.96897]
[1727721329957,0.38758,2580.8,2580.5,0.38761]
[1727721330162,0.38758,2580.8,2579.9,3.2078]
[1727721330163,0.38762,2580.5,2579.9,3.2078]
[1727721330363,3.2078,2580.6,2580.3,0.38764]
[1727721330364,0.7167,2580.4,2580.3,0.38764]
[1727721330864,0.7167,2580.4,2579.8,4.86989]
[1727721331066,3.2078,2580.3,2580.2,0.38766]
[1727721331268,3.2078,2580.3,2579.7,0.7101]
[1727721331656,3.2078,2580.3,2580.2,0.38766]
[1727721331859,3.2078,2580.3,2579.7,0.7101]
[1727721332065,3.2078,2580.3,2580.0,0.38768]
[1727721332463,3.2078,2580.3,2579.7,0.7101]
[1727721332464,3.2078,2580.3,2579.9,0.38769]
[1727721332663,3.2078,2580.3,2579.7,0.7101]
[1727721332864,3.2078,2580.3,2580.0,0.38768]
[1727721333365,7.0838,2580.3,2580.0,0.38768]
[1727721333566,4.26367,2580.2,2579.3,1.35728]
[1727721333767,3.2078,2579.8,2579.7,0.38773]
[1727721334477,3.2078,2580.2,2580.1,0.38767]
[1727721335568,3.2078,2580.2,2580.1,4.26367]
[1727721336073,3.2078,2580.2,2580.1,0.38767]
[1727721336278,3.2078,2580.2,2580.1,4.26367]
[1727721337676,0.7167,2580.4,2580.1,3.876]
[1727721337980,0.7167,2580.4,2579.9,1.4034]
[1727721337981,0.7167,2580.4,2580.3,0.38764]
[1727721338569,3.2078,2580.5,2580.4,0.38763]
[1727721338771,3.73751,2581.2,2580.9,0.38755]
[1727721338772,3.2078,2581.0,2580.9,0.38755]
[1727721338971,3.2078,2581.0,2580.5,1.69594]
[1727721339174,3.2078,2581.0,2580.5,0.7269]
[1727721339477,3.2078,2581.0,2580.6,0.3876]
[1727721339677,3.2078,2581.0,2580.9,0.38755]
[1727721340078,3.2078,2581.0,2580.7,0.38757]
[1727721340580,3.2078,2581.0,2580.5,0.7269]
[1727721340787,3.2078,2580.7,2580.6,0.38759]
[1727721341274,5.19042,2581.2,2580.5,0.7269]
[1727721341275,3.2078,2581.0,2580.5,0.7269]
[1727721341580,3.2078,2581.0,2580.8,0.38756]
[1727721341778,3.2078,2581.0,2580.5,0.7269]
[1727721341984,3.2078,2581.0,2580.9,0.38755]
[1727721344479,3.2078,2581.4,2581.3,0.38749]
[1727721344894,3.2078,2581.4,2581.2,0.3875]
[1727721345088,3.2078,2581.4,2581.3,0.38749]
[1727721345287,7.3878,2581.7,2581.1,0.7443]
[1727721345484,10.162,2582.1,2582.0,0.38739]
[1727721345485,3.2078,2582.1,2582.0,0.38739]
[1727721345895,7.0806,2582.1,2581.7,0.7309]
[1727721346197,3.2078,2582.1,2581.7,0.7309]
[1727721346584,3.2078,2582.1,2581.8,0.3874]
[1727721346785,3.2078,2582.1,2581.7,1.11833]
[1727721347088,3.2078,2581.8,2581.7,0.38743]
[1727721347286,5.17534,2582.4,2581.4,0.7337]
[1727721347287,3.2078,2582.1,2582.0,0.38739]
[1727721347498,3.2078,2582.1,2581.9,0.3874]
[1727721347701,3.2078,2582.1,2581.4,0.7337]
[1727721347890,3.2078,2582.1,2581.8,0.38741]
[1727721348591,3.2078,2582.1,2581.4,0.7337]
[1727721348993,3.2078,2581.8,2581.7,0.38742]
[1727721349295,3.2078,2581.8,2581.7,0.38743]
[1727721349695,3.2078,2581.8,2581.2,0.6909]
[1727721349696,3.2078,2581.8,2581.6,0.38744]
[1727721349994,3.2078,2581.8,2581.4,0.38747]
[1727721350293,1.4031,2581.7,2581.6,0.38745]
[1727721350504,1.4031,2581.7,2581.2,0.6909]
[1727721350795,1.4031,2581.7,2580.9,7.14737]
[1727721350796,3.2078,2581.5,2581.3,0.38749]
[1727721350991,3.2078,2581.5,2580.9,5.4394]
[1727721351389,3.2078,2581.5,2581.0,0.96885]
[1727721351589,3.2078,2581.5,2581.3,0.38748]
[1727721351792,3.2078,2581.5,2581.0,0.96885]
[1727721351991,3.2078,2581.5,2581.4,0.38748]
[1727721355398,1.4031,2581.7,2581.6,0.38745]
[1727721355399,0.7072,2581.7,2581.6,0.38745]
[1727721358898,0.7072,2581.7,2581.2,0.96874]
[1727721358899,0.7072,2581.7,2581.5,0.38746]
[1727721359399,3.8736,2581.6,2581.0,0.96884]
[1727721359587,0.7072,2581.7,2581.3,0.38749]
[1727721359588,3.2078,2581.4,2581.3,0.38749]
[1727721360394,0.38741,2581.9,2581.3,0.38749]
[1727721360395,3.2078,2582.1,2581.4,0.9687]
[1727721360597,3.2078,2582.1,2582.0,0.38739]
[1727721360803,4.6905,2582.4,2582.2,0.38735]
[1727721361203,8.5633,2582.4,2581.9,0.96851]
[1727721361395,8.5633,2582.4,2581.7,0.96858]
[1727721361396,3.2078,2582.2,2582.1,0.38736]
[1727721361601,3.2078,2582.2,2581.6,0.96863]
[1727721361802,3.2078,2582.2,2582.1,0.38737]
[1727721362799,3.2078,2582.8,2582.7,0.38728]
[1727721363193,3.2078,2583.1,2582.4,0.96832]
[1727721363607,3.59503,2583.1,2582.6,0.38728]
[1727721363817,3.2078,2582.8,2582.5,0.7332]
[1727721364010,3.2078,2582.8,2582.2,1.68078]
[1727721364011,3.2078,2582.8,2582.2,0.7124]
[1727721364307,3.2078,2582.8,2582.1,3.2078]
[1727721364497,3.2078,2582.8,2582.2,0.38736]
[1727721364498,3.59508,2582.8,2582.2,0.38736]
[1727721364697,3.2078,2582.8,2582.1,3.2078]
[1727721364896,3.2078,2582.8,2582.5,0.38731]
[1727721365097,3.2078,2582.8,2582.0,0.6873]
[1727721365397,3.2078,2582.2,2582.1,0.38737]
[1727721365909,3.2078,2582.5,2582.4,0.38733]
[1727721366608,4.18,2582.9,2582.1,0.96842]
[1727721366609,7.3878,2582.9,2582.8,0.38727]
[1727721366810,7.0798,2582.9,2581.9,3.2078]
[1727721367004,0.38724,2583.0,2582.6,0.38729]
[1727721367314,0.38728,2582.7,2582.3,0.38733]
[1727721367610,3.2078,2582.5,2582.4,0.38732]
[1727721369701,7.0798,2582.5,2581.8,1.70073]
[1727721369909,3.2078,2582.2,2582.1,0.38736]
[1727721370106,3.2078,2582.2,2582.0,0.38738]
[1727721370306,3.2078,2582.2,2582.1,0.38737]
[1727721370513,3.2078,2582.2,2581.7,0.7175]
[1727721370514,7.0806,2582.2,2581.9,0.38739]
[1727721370712,0.38739,2582.1,2581.6,0.38743]
[1727721370909,3.2078,2581.9,2581.2,2.39406]
[1727721371108,3.2078,2581.9,2581.8,0.38742]
[1727721372010,3.2078,2581.9,2581.4,4.17647]
[1727721372011,7.0806,2581.9,2581.7,0.38743]
[1727721372206,3.2078,2581.9,2581.4,3.2078]
[1727721372407,3.2078,2581.9,2581.8,0.38742]
[1727721372713,7.0806,2581.9,2581.7,0.38742]
[1727721373017,3.2078,2581.9,2581.7,0.38742]
[1727721373207,3.2078,2581.9,2581.6,0.38744]
[1727721373510,3.2078,2581.9,2581.2,2.39406]
[1727721373707,0.6941,2582.0,2580.3,7.11261251]
[1727721373708,6.5578,2581.6,2580.4,1.00445625]
[1727721373912,3.2078,2581.3,2580.5,2.38894]
[1727721374110,6.5578,2581.3,2580.5,2.38894]
[1727721374306,6.5578,2581.3,2580.5,1.4199]
[1727721374307,3.2078,2581.0,2580.5,1.4199]
[1727721374506,0.676,2581.2,2581.1,0.38752]
[1727721374801,0.676,2581.2,2580.8,0.38756]
[1727721375006,3.2078,2581.0,2580.9,0.38755]
[1727721375212,3.2078,2581.0,2580.8,0.38756]
[1727721375401,3.2078,2581.0,2580.5,1.4199]
[1727721375613,3.2078,2581.0,2580.6,0.3876]
[1727721375812,3.2078,2581.0,2580.5,1.4199]
[1727721376007,3.2078,2581.0,2580.9,0.38755]
[1727721376513,7.0822,2581.0,2580.9,0.38755]
[1727721376903,7.0822,2581.0,2580.4,0.38762]
[1727721376904,0.38756,2580.9,2580.4,0.38762]
[1727721377214,1.6448,2581.2,2580.6,0.38759]
[1727721377215,3.2078,2580.7,2580.6,0.38759]
[1727721377815,3.2078,2580.7,2580.3,0.38763]
[1727721378010,3.2078,2580.4,2580.0,0.38768]
[1727721378814,3.2078,2580.4,2580.0,0.38767]
[1727721379012,3.2078,2580.4,2580.1,0.38767]
[1727721379213,3.2078,2580.4,2580.0,0.38768]
[1727721379518,3.2078,2580.4,2579.8,0.9693]
[1727721379713,3.2078,2580.4,2579.7,1.4634]
[1727721379916,3.2078,2580.4,2579.8,0.9693]
[1727721380118,3.2078,2580.4,2580.3,0.38764]
[1727721380512,3.2078,2580.4,2579.7,1.4634]
[1727721380716,3.2078,2580.4,2580.3,0.38764]
[1727721381424,7.083,2580.4,2579.7,2.43272]
[1727721381621,3.2078,2580.1,2580.0,0.38769]
[1727721382711,1.4059,2580.6,2580.3,0.38764]
[1727721382712,3.2078,2580.4,2580.3,0.38764]
[1727721383420,3.2078,2580.4,2579.9,3.5955]
[1727721383608,3.2078,2580.0,2579.6,0.38774]
[1727721383814,3.2078,2579.7,2579.1,0.7049]
[1727721384112,3.2078,2579.4,2579.2,0.38781]
[1727721384313,3.59558,2579.4,2578.9,0.38785]
[1727721384519,0.6809,2579.3,2579.0,0.38784]
[1727721384823,3.2078,2579.1,2578.6,0.7049]
[1727721385214,3.2078,2579.1,2579.0,0.38784]
[1727721386924,0.6809,2579.3,2578.6,0.7049]
[1727721387221,0.6809,2579.3,2579.2,0.38781]
[1727721387410,0.6809,2579.3,2578.6,0.7049]
[1727721387411,3.2078,2579.4,2578.6,0.7049]
[1727721387621,3.35,2579.8,2579.6,0.38774]
[1727721387622,3.2078,2579.7,2579.6,0.38774]
[1727721387817,0.875,2580.3,2578.7,3.8776]
[1727721387818,3.2078,2580.2,2579.3,3.2078]
[1727721388119,3.2078,2580.2,2580.1,0.38767]
[1727721389920,3.2078,2580.2,2580.1,4.26367]
[1727721390719,3.9582,2580.6,2580.1,3.876]
[1727721391025,3.9582,2580.6,2580.5,0.38761]
[1727721391224,3.2078,2580.6,2580.5,0.38761]
[1727721391612,3.35,2581.0,2580.5,3.8752]
[1727721391613,3.2078,2580.9,2580.5,3.8752]
[1727721391821,3.2078,2580.9,2580.2,0.96914]
[1727721391822,3.2078,2580.9,2580.8,0.38757]
[1727721392418,3.2078,2580.9,2580.4,0.96906]
[1727721392719,3.2078,2580.9,2580.8,0.38757]
[1727721393728,6.5578,2581.3,2581.1,0.38752]
[1727721394118,6.5578,2581.3,2580.8,0.7995]
[1727721394318,3.2078,2581.0,2580.9,0.38755]
[1727721396016,6.5578,2581.3,2580.9,3.8744]
[1727721396323,3.2078,2581.3,2581.2,0.38751]
[1727721396526,7.53,2582.0,2581.7,0.38743]
[1727721396527,3.2078,2581.8,2581.7,0.38743]
[1727721396914,0.7784,2582.0,2581.8,0.38741]
[1727721397120,3.2078,2582.1,2581.9,0.3874]
[1727721397320,3.2078,2582.1,2581.5,0.8014]
[1727721397525,3.2078,2581.8,2581.7,0.38742]
[1727721397827,3.2078,2582.1,2581.5,0.8014]
[1727721398028,3.2078,2581.8,2581.5,0.8014]
[1727721398632,3.2078,2581.8,2581.7,0.38743]
[1727721401327,3.2078,2582.1,2582.0,0.38739]
[1727721402134,3.2078,2582.1,2581.5,1.77005]
[1727721402135,7.0806,2582.1,2581.8,0.3874]
[1727721402336,3.2078,2582.1,2581.8,0.3874]
[1727721403237,3.2078,2582.1,2581.9,0.38739]
[1727721403443,3.2078,2582.1,2581.6,0.38745]
[1727721403733,3.2078,2582.1,2581.9,0.38739]
[1727721404532,3.2078,2582.1,2581.8,0.38741]
[1727721404832,3.2078,2582.1,2582.0,0.38739]
[1727721407133,3.2078,2582.1,2582.0,4.26019]
[1727721407837,3.2078,2582.1,2582.0,0.38739]
[1727721408038,3.2078,2582.1,2582.0,4.26019]
[1727721408638,3.2078,2582.1,2582.0,0.38739]
[1727721410945,3.2078,2582.1,2581.6,5.01971]
[1727721411134,3.2078,2582.1,2581.6,1.81191]
[1727721411840,3.2078,2582.1,2581.6,0.8433]
[1727721412046,0.7826,2582.4,2581.6,0.8433]
[1727721412047,3.2078,2581.8,2581.6,0.38744]
[1727721412340,3.2078,2581.8,2581.2,0.96875]
[1727721412539,3.2078,2581.8,2581.4,0.38748]
[1727721412540,3.2078,2581.5,2581.4,0.38748]
[1727721413044,3.2078,2581.5,2581.4,0.38744]
[1727721413232,3.2078,2581.5,2581.0,1.74603]
[1727721413434,3.2078,2581.5,2581.4,0.38744]
[1727721413839,3.2078,2581.5,2581.0,0.7772]
[1727721414241,3.2078,2581.5,2581.3,0.38745]
[1727721414545,3.2078,2581.5,2581.4,0.38744]
[1727721415739,3.2078,2582.1,2581.9,0.38736]
[1727721415946,3.2078,2582.1,2581.3,3.2078]
[1727721415947,1.6434,2582.3,2581.7,4.17629]
[1727721416246,1.6434,2582.3,2582.2,0.38732]
[1727721416448,1.6434,2582.3,2582.0,0.38734]
[1727721416650,1.6434,2582.3,2581.6,0.96853]
[1727721416651,3.2078,2582.2,2581.6,0.96853]
[1727721416852,3.2078,2582.2,2582.0,0.38735]
[1727721417144,3.2078,2582.2,2581.6,0.96853]
[1727721417350,3.2078,2582.2,2582.0,0.38735]
[1727721417544,1.6434,2582.3,2581.6,0.96853]
[1727721417545,3.2078,2582.8,2581.9,3.35]
[1727721417747,4.8512,2583.3,2582.9,0.38721]
[1727721418246,4.8512,2583.3,2582.5,0.8316]
[1727721418247,3.2078,2583.3,2582.5,0.8316]
[1727721418452,3.2078,2583.6,2582.7,3.2078]
[1727721418843,3.2078,2583.6,2582.7,4.1759]
[1727721419145,3.2078,2583.6,2583.2,0.38716]
[1727721419448,3.2078,2583.6,2583.3,0.38715]
[1727721420146,3.2078,2583.6,2583.2,0.38717]
[1727721420342,3.2078,2583.6,2582.9,3.35]
[1727721420545,3.2078,2584.3,2583.9,0.38709]
[1727721420845,3.2078,2584.3,2583.5,1.5423]
[1727721421054,3.2078,2584.3,2583.7,0.38712]
[1727721421055,3.2078,2584.0,2583.7,0.38712]
[1727721421247,0.38705,2584.3,2583.7,0.38712]
[1727721421248,3.59485,2584.3,2583.7,0.38712]
[1727721421556,3.2078,2584.0,2583.7,0.38712]
[1727721421943,3.2078,2584.0,2583.7,0.38713]
[1727721422143,3.2078,2584.0,2583.6,1.5]
[1727721422339,3.2078,2584.0,2583.8,0.38712]
[1727721422952,3.2078,2584.0,2583.6,0.38714]
[1727721423247,3.2078,2584.0,2583.7,0.38712]